{"text_format":"1","workbook":"xlsx","n_sheets":4,"sheets":["Support","Paraiska","Issimokejimo grafikas","Darbu Sarasas"],"not_rendered":{"charts":0,"images":0,"macros":1,"external_links":0,"defined_names":0,"comments":0,"pivot_tables":0},"unopened":[],"bounds":{"document_bytes":16777216,"sheet_cells":100000,"rows_first":2000,"rows_last":500,"rows_between":2000,"halvings":0,"cell_chars":16384,"cell_head_chars":4096},"cells_cut":0,"cells_raw":0,"read":"whole","date_system":"1900"}

{"sheet":"Support","index":0,"n_rows":103,"n_cols":16,"rows_kept":103,"cut":false,"hidden":true,"merged":[[77,1,81,1],[77,2,81,2],[77,3,81,3],[36,1,40,1],[36,2,40,2],[36,3,40,3],[56,1,60,1],[56,2,60,2],[56,3,60,3]]}
[null,"Pasirinkimas"]
[]
["PVM moketojas","PVM moketojas - PVM neapmokestinama veikla, ne rangos darbai","Ne PVM moketojas - rangos darbai","Ne PVM moketojas - PVM neapmokestinama veikla, ne rangos darbai",null,"PVM moketojasTAIP","OK","PVM moketojas",1.2,1.21]
["NE","NE","NE","NE",null,"PVM moketojasNE","OK","PVM moketojas - PVM neapmokestinama veikla, ne rangos darbai",1.2,1.21]
["TAIP",null,null,null,null,"Ne PVM moketojas - rangos darbaiNE","OK","Ne PVM moketojas - rangos darbai",{"$f":"1.242","v":1.242},1]
[null,null,null,null,null,"Ne PVM moketojas - rangos darbaiTAIP","NE","Ne PVM moketojas - PVM neapmokestinama veikla, ne rangos darbai",1.5,1]
["TAIP","NE","Minimali kaina kv.m., EUR",0.5,null,"PVM moketojas - PVM neapmokestinama veikla, ne rangos darbaiNE","OK"]
["12 men. (1m.)","Be issimokejimo termino","Minimali nemokumo riba",0.05,null,"PVM moketojas - PVM neapmokestinama veikla, ne rangos darbaiTAIP","NE"]
["18 men. (1.5m.)",null,null,null,null,"Ne PVM moketojas - PVM neapmokestinama veikla, ne rangos darbaiNE","OK"]
["24 men. (2m.)",null,null,null,null,"Ne PVM moketojas - PVM neapmokestinama veikla, ne rangos darbaiTAIP","NE"]
["30 men. (2.5m.)"]
["36 men. (3m.)"]
["42 men. (3.5m.)"]
["48 men. (4m.)",null,null,null,null,null,null,null,null,null,null,null,null,null,"Pirkimai","CS2021P"]
[null,null,null,null,null,null,null,null,null,null,null,null,null,null,"Bendra","CSSE48"]
[null,"1-5",null,6,null,7,null,null,null,null,8]
["issimokejimo terminas","Mokestis, %","Min. mokestis, EUR","Mokestis, %","Min. mokestis, EUR","Mokestis, %","Faktoringo kaina","Garantija","Reiksmes","Menesiai","Nemokumo koef"]
["Be issimokejimo termino",0.2,0,0,0,0,0,0.04,"NE",1,0]
["12 men. (1m.)",0.13,300,0.02,100,0.05,7.6316491272950537E-2,0.04,"TAIP",12,0.5]
["18 men. (1.5m.)",0.121,300,0.02,100,7.0999999999999994E-2,0.10270034785286498,0.04,"TAIP",18,0.5]
["24 men. (2m.)",0.113,300,0.02,100,0.09,0.12305037125973285,0.04,"TAIP",24,0.5]
["30 men. (2.5m.)",0.104,300,0.02,100,0.108,0.13713406506233672,0.04,"TAIP",30,0.5]
["36 men. (3m.)",9.6000000000000002E-2,300,0.02,100,0.123,0.14479037575786446,0.04,"TAIP",36,0.5]
["42 men. (3.5m.)",8.7999999999999995E-2,300,0.02,100,0.13800000000000001,0.16946973604135224,0.04,"TAIP",42,0.5]
["48 men. (4m.)",0.08,300,0.02,100,0.15,0.19448203394884239,0.04,"TAIP",48,0.5]
[]
[]
[null,"Bendras"]
[]
["Finansuotojas finansuoja rangovo saskaita"]
[]
["Tarpine rangovo saskaita (skirta faktoringo kainos apskaičiavimui)","Suma","PVM","Suma su PVM"]
[null,{"$f":"IF(OR(Paraiska!B11=\"PVM moketojas\",Paraiska!B11=\"PVM moketojas - PVM neapmokestinama veikla, ne rangos darbai\")=TRUE,Paraiska!B10+Paraiska!E10+B45,Paraiska!B10+Paraiska!E10+D45)","v":37500},{"$f":"IF(OR(Paraiska!B11=\"PVM moketojas\",Paraiska!B11=\"PVM moketojas - PVM neapmokestinama veikla, ne rangos darbai\")=TRUE,B33*0.21,0)","v":7875},{"$f":"SUM(B33,C33)","v":45375}]
[]
[]
[null,"Suma","PVM","Suma su PVM"]
["1 - Techninis konsultavimas del optimalaus darbu įgyvendinimo",{"$f":"ROUND(MAX(VLOOKUP(Paraiska!B35,A18:C25,2,0)*(Paraiska!B10+Paraiska!E10),VLOOKUP(Paraiska!B35,A18:C25,3,0)),2)","v":2400},{"$f":"ROUND(B37*0.21,2)","v":504},{"$f":"B37+C37","v":2904}]
["2 - Projektines uzduoties parengimas, siekiant Rangovui tinkamai pateikti pirkimo pasiulyma"]
["3 - Rangovu atliktu darbu garantiniu įsipareigojimu organizavimas"]
["4 - Rangovu sertifikavimas (patikimu tiekeju sarasas)"]
["5 - Marketingines, reklamines (patikimu rangovu saraso viesinimo) paslaugos"]
["6 - Rangovu finansinio faktoringo organizavimas",{"$f":"ROUND(MAX(VLOOKUP(Paraiska!B35,A18:E25,4,0)*(Paraiska!B10+Paraiska!E10),VLOOKUP(Paraiska!B35,A18:E25,5,0)),2)","v":600},{"$f":"ROUND(B42*0.21,2)","v":126},{"$f":"B42+C42","v":726}]
["7 - Garantijos kastai",{"$f":"ROUND(VLOOKUP(Paraiska!B35,A18:F25,6,0)*(Paraiska!B10+Paraiska!E10),2)","v":4500},{"$f":"ROUND(B43*0.21,2)","v":945},{"$f":"B43+C43","v":5445}]
["8 - Kliento nemokumas",{"$f":"ROUND(IF(Paraiska!B36<D8,0,Paraiska!B36*VLOOKUP(Paraiska!B35,Support!A18:K25,11,0))*(Paraiska!B10+Paraiska!E10),2)","v":0},{"$f":"ROUND(B44*0.21,2)","v":0},{"$f":"B44+C44","v":0}]
["Daugiabučio administratoriaus israsoma saskaita (Rangovui)",{"$f":"SUM(B37:B44)","v":7500},{"$f":"SUM(C37:C44)","v":1575},9075]
[]
[]
[null,"#1 Pasirinkimas"]
[]
["Finansuotojas finansuoja rangovo saskaita"]
[]
["Tarpine rangovo saskaita (skirta faktoringo kainos apskaičiavimui)","Suma","PVM","Suma su PVM"]
[null,{"$f":"IF(OR(Paraiska!B11=\"PVM moketojas\",Paraiska!B11=\"PVM moketojas - PVM neapmokestinama veikla, ne rangos darbai\")=TRUE,Paraiska!B10+B65,Paraiska!B10+D65)","v":37500},{"$f":"IF(OR(Paraiska!B11=\"PVM moketojas\",Paraiska!B11=\"PVM moketojas - PVM neapmokestinama veikla, ne rangos darbai\")=TRUE,B53*0.21,0)","v":7875},{"$f":"SUM(B53,C53)","v":45375}]
[]
[]
[null,"Suma","PVM","Suma su PVM"]
["1 - Techninis konsultavimas del optimalaus darbu įgyvendinimo",{"$f":"IFERROR(B37/SUM(Paraiska!B10:G10)*Paraiska!B10,0)","v":2400},{"$f":"ROUND(B57*0.21,2)","v":504},{"$f":"B57+C57","v":2904}]
["2 - Projektines uzduoties parengimas, siekiant Rangovui tinkamai pateikti pirkimo pasiulyma"]
["3 - Rangovu atliktu darbu garantiniu įsipareigojimu organizavimas"]
["4 - Rangovu sertifikavimas (patikimu tiekeju sarasas)"]
["5 - Marketingines, reklamines (patikimu rangovu saraso viesinimo) paslaugos"]
["6 - Rangovu finansinio faktoringo organizavimas",{"$f":"IFERROR(B42/SUM(Paraiska!B10:G10)*Paraiska!B10,0)","v":600},{"$f":"ROUND(B62*0.21,2)","v":126},{"$f":"B62+C62","v":726}]
["7 - Garantijos kastai",{"$f":"IFERROR(B43/SUM(Paraiska!B10:G10)*Paraiska!B10,0)","v":4500},{"$f":"ROUND(B63*0.21,2)","v":945},{"$f":"B63+C63","v":5445}]
["8 - Kliento nemokumas",{"$f":"IFERROR(B44/SUM(Paraiska!B10:G10)*Paraiska!B10,0)","v":0},{"$f":"ROUND(B64*0.21,2)","v":0},{"$f":"B64+C64","v":0}]
["Daugiabučio administratoriaus israsoma saskaita (Rangovui)",{"$f":"SUM(B57:B64)","v":7500},{"$f":"SUM(C57:C64)","v":1575},9075]
[]
[]
[null,"#2 Pasirinkimas"]
[]
["Finansuotojas finansuoja rangovo saskaita"]
[]
["Tarpine rangovo saskaita (skirta faktoringo kainos apskaičiavimui)","Suma","PVM","Suma su PVM"]
[null,{"$f":"IF(OR(Paraiska!B11=\"PVM moketojas\",Paraiska!B11=\"PVM moketojas - PVM neapmokestinama veikla, ne rangos darbai\")=TRUE,Paraiska!E10+B86,Paraiska!E10+D86)","v":0},{"$f":"IF(OR(Paraiska!B11=\"PVM moketojas\",Paraiska!B11=\"PVM moketojas - PVM neapmokestinama veikla, ne rangos darbai\")=TRUE,B73*0.21,0)","v":0},{"$f":"SUM(B73,C73)","v":0}]
[]
[]
[]
[null,"Suma","PVM","Suma su PVM"]
["1 - Techninis konsultavimas del optimalaus darbu įgyvendinimo",{"$f":"B37-B57","v":0},{"$f":"C37-C57","v":0},{"$f":"B78+C78","v":0}]
["2 - Projektines uzduoties parengimas, siekiant Rangovui tinkamai pateikti pirkimo pasiulyma",null,null,0]
["3 - Rangovu atliktu darbu garantiniu įsipareigojimu organizavimas",null,null,0]
["4 - Rangovu sertifikavimas (patikimu tiekeju sarasas)",null,null,0]
["5 - Marketingines, reklamines (patikimu rangovu saraso viesinimo) paslaugos",null,null,0]
["6 - Rangovu finansinio faktoringo organizavimas",{"$f":"B42-B62","v":0},0,{"$f":"B83+C83","v":0}]
["7 - Garantijos kastai",0,0,{"$f":"B84+C84","v":0}]
["8 - Kliento nemokumas",0,0,{"$f":"B85+C85","v":0}]
["Daugiabučio administratoriaus israsoma saskaita (Rangovui)",{"$f":"SUM(B78:B84)","v":0},{"$f":"SUM(C78:C84)","v":0},{"$f":"SUM(D78:D84)","v":0}]
[]
[]
[]
["Įmoniu sarasas"]
["UAB „Mano Bustas Alytus“"]
["UAB „Mano Bustas Aukstaitija“"]
["UAB „Mano Bustas Dainava“"]
["UAB „Mano Bustas Baltija“"]
["UAB „Mano Bustas Sostine“"]
["UAB „Mano Bustas NPC“"]
["UAB „Mano Bustas Vilnius“"]
["UAB „Mano Bustas Radviliskis“"]
["UAB „Mano Bustas Siauliai“"]
["UAB „Mano Bustas Vakarai“"]
["UAB „Mano Bustas Klaipeda“"]
["UAB „Mano Bustas Neris“"]
["UAB „Mano Bustas Kaunas“"]

{"sheet":"Paraiska","index":1,"n_rows":170,"n_cols":22,"rows_kept":170,"cut":false,"hidden":false,"merged":[[62,1,62,6],[57,4,57,6],[8,4,8,6],[8,1,8,3],[0,1,0,6],[12,1,12,6],[25,1,25,3],[25,4,25,6],[132,4,132,6],[3,1,3,6],[5,1,5,6],[76,1,76,3],[70,1,70,3],[69,1,69,3],[77,4,77,6],[76,4,76,6],[75,4,75,6],[71,4,71,6],[70,4,70,6],[69,4,69,6],[81,1,81,6],[74,1,74,6],[86,1,86,3],[91,4,91,6],[153,1,153,3],[155,4,155,6],[154,4,154,6],[153,4,153,6],[110,1,110,6],[10,1,10,6],[9,4,9,6],[11,4,11,6],[7,1,7,6],[19,1,19,6],[21,1,21,6],[20,1,20,6],[22,1,22,6],[39,1,39,6],[68,1,68,6],[138,1,138,6],[137,1,137,6],[136,1,136,6],[135,1,135,6],[133,1,133,6],[134,1,134,6],[65,4,65,6],[64,4,64,6],[63,4,63,6],[77,1,77,3],[131,1,131,6],[152,1,152,6],[148,1,148,6],[146,1,146,6],[145,1,145,6],[144,1,144,6],[143,1,143,6],[142,1,142,6],[141,1,141,6],[140,1,140,6],[139,1,139,6],[147,1,147,6],[31,1,31,6],[30,1,30,6],[29,1,29,6],[28,1,28,6],[27,8,27,10],[154,1,154,3],[155,1,155,3],[132,1,132,3],[89,1,89,3],[88,1,88,3],[87,1,87,3],[87,4,87,6],[101,1,101,3],[86,4,86,6],[58,4,58,6],[59,4,59,6],[121,1,121,6],[120,1,120,6],[118,1,118,6],[117,1,117,6],[116,1,116,6],[114,1,114,6],[113,1,113,6],[112,1,112,6],[9,1,9,3],[11,1,11,3],[20,8,20,10],[25,8,25,10],[24,8,24,10],[23,8,23,10],[30,8,30,10],[58,1,58,3],[57,1,57,3],[57,8,57,10],[35,8,35,10],[32,8,32,10],[33,8,33,10],[23,1,23,6],[41,4,41,6],[24,1,24,6],[38,1,38,6],[35,1,35,6],[34,1,34,6],[22,8,22,10],[31,8,31,10],[21,8,21,10],[33,1,33,6],[32,1,32,6],[68,8,68,10],[65,8,65,10],[59,8,59,10],[54,8,54,10],[41,1,41,3],[42,8,42,10],[64,1,64,3],[63,1,63,3],[34,8,34,10],[64,8,64,10],[63,8,63,10],[65,1,65,3],[59,1,59,3],[41,8,41,10],[38,8,38,10],[39,8,39,10],[56,8,56,10],[42,1,42,3],[42,4,42,6],[54,1,54,6],[37,1,37,6],[36,1,36,6],[40,3,40,4],[56,1,56,6],[3,8,3,10],[62,8,62,10],[58,8,58,10],[117,8,117,10],[114,8,114,10],[113,8,113,10],[110,8,110,10],[82,8,82,10],[81,8,81,10],[89,8,89,10],[7,8,7,10],[9,8,9,10],[10,8,10,10],[11,8,11,10],[19,8,19,10],[28,8,28,10],[29,8,29,10],[77,8,77,10],[76,8,76,10],[91,8,91,10],[111,8,111,10],[84,8,84,10],[88,8,88,10],[87,8,87,10],[192,8,192,10],[70,8,70,10],[69,8,69,10],[153,8,153,10],[154,8,154,10],[155,8,155,10],[164,8,164,10],[137,8,137,10],[138,8,138,10],[139,8,139,10],[140,8,140,10],[141,8,141,10],[142,8,142,10],[143,8,143,10],[144,8,144,10],[145,8,145,10],[86,8,86,10],[85,8,85,10],[74,8,74,10],[75,8,75,10],[146,8,146,10],[147,8,147,10],[148,8,148,10],[152,8,152,10],[131,8,131,10],[132,8,132,10],[133,8,133,10],[134,8,134,10],[135,8,135,10],[136,8,136,10],[121,8,121,10],[120,8,120,10],[118,8,118,10],[116,8,116,10],[112,8,112,10],[75,1,75,3],[71,1,71,3],[71,8,71,10],[90,8,90,10],[83,8,83,10],[130,1,130,3],[130,4,130,6],[84,1,84,3],[83,1,83,3],[82,1,82,3],[85,4,85,6],[84,4,84,6],[83,4,83,6],[82,4,82,6],[111,1,111,6],[115,4,115,6],[90,4,90,6],[89,4,89,6],[88,4,88,6],[91,1,91,3],[90,1,90,3],[85,1,85,3]]}
[null,"Pildomi laukai"]
[]
[]
["PIRKIMAI","PILDOMA INDORMACIJA",null,null,null,null,null,null,"PILDOMA INDORMACIJA",null,null,null,null,null,null,null,null,null,null,null,null,"X"]
[]
["Įveskite skirtingų atliekamų darbų skaičių (skirtingų mišrių PVM arba garantijos taikymas)",1]
[]
[null,"RANGOVO INFORMACIJA",null,null,null,null,null,null,"RANGOVO INFORMACIJA"]
[null,null,null,null,"Darbas #2"]
["Rangovo gaunamos pajamos (be administratoriaus ir faktoringo kaštų), EUR be PVM",30000,null,null,null,null,null,null,{"$f":"SUM(B10:G10)","v":30000}]
["Darbų vykdytojo PVM mokėtojo statusas","PVM moketojas",null,null,null,null,null,null,{"$f":"B11","v":"PVM moketojas"}]
["Ar taikomas atvirkštinis PVM? Pasirinkite reikšmę NE arba TAIP (galima tik kai rangovas yra PVM mokėtojas)","TAIP",{"$f":"OFFSET(Support!$A$3,1,MATCH($B$11,Support!$A$3:'Support'!$D$3,0)-1,1,1)","v":"NE"},{"$f":"OFFSET(Support!$A$3,1,MATCH($B$11,Support!$A$3:'Support'!$D$3,0)-1,1,1)","v":"NE"},{"$f":"OFFSET(Support!$A$3,1,MATCH($B$11,Support!$A$3:'Support'!$D$3,0)-1,1,1)","v":"NE"},{"$f":"OFFSET(Support!$A$3,1,MATCH($B$11,Support!$A$3:'Support'!$D$3,0)-1,1,1)","v":"NE"},{"$f":"OFFSET(Support!$A$3,1,MATCH($B$11,Support!$A$3:'Support'!$D$3,0)-1,1,1)","v":"NE"},null,{"$f":"IF(OR(B12=\"TAIP\",E12=\"TAIP\")=TRUE,\"TAIP\",\"NE\")","v":"TAIP"}]
["Rangovo tipas","Ne PortalPRO"]
[null,{"$f":"OFFSET(Support!$A$3,1,MATCH($B$11,Support!$A$3:'Support'!$D$3,0)-1,1,1)","v":"NE"},{"$f":"OFFSET(Support!$A$7,1,MATCH($B$34,Support!$A$7:'Support'!$B$7,0)-1,1,1)","v":"12 men. (1m.)"},{"$f":"Support!$D$7","v":0.5}]
[null,{"$f":"IF(VLOOKUP(B11&B12,Support!F3:'Support'!G10,2,FALSE)=\"OK\",\"\",\"KLAIDA: Atvirkštinį PVM galima rinktis tik tuo atveju, jei rangovas yra PVM mokėtojas\")","v":""}]
[null,{"$f":"IF(VLOOKUP(B11&E12,Support!F3:'Support'!G10,2,FALSE)=\"OK\",\"\",\"KLAIDA: Atvirkštinį PVM galima rinktis tik tuo atveju, jei rangovas yra PVM mokėtojas\")","v":""}]
[]
[]
[]
[null,"UZSAKOVO INFORMACIJA",null,null,null,null,null,null,"UŽSAKOVO INFORMACIJA"]
["Administratoriaus pavadinimas","UAB „Mano Bustas Siauliai“",null,null,null,null,null,null,{"$f":"IF(B21=0,\"\",B21)","v":"UAB „Mano Bustas Siauliai“"}]
["Iniciatorius","Asta Daugėlė",null,null,null,null,null,null,{"$f":"IF(B22=0,\"\",B22)","v":"Asta Daugėlė"}]
["Unikalus pranešimo numeris","V21-1083579"]
["Namo valdymo forma","Namo administratorius",null,null,null,null,null,null,{"$f":"IF(B24=0,\"\",B24)","v":"Namo administratorius"}]
["Namo adresas","Gegužių 80, Šiauliai",null,null,null,null,null,null,{"$f":"IF(B25=0,\"\",B25)","v":"Gegužių 80, Šiauliai"}]
["Darbо tipas","namo blokų padengimas termokeramika ",null,null,null,null,null,null,{"$f":"CONCATENATE(B26,,\";\",\" \",E26)","v":"namo blokų padengimas termokeramika ; "}]
["Rezervas"]
["Rezervas"]
["Naudingas namo/laiptinės plotas, kv. m",2322.88,null,null,null,null,null,null,{"$f":"B29","v":2322.88}]
["Namo/laiptinės butų skaičius, vnt.",35,null,null,null,null,null,null,{"$f":"IF(B30=0,\"\",B30)","v":35}]
["Panaudojama kaupiamųjų lėšų suma",0,null,null,null,null,null,null,{"$f":"IF(B31=0,\"\",B31)","v":""}]
["Panaudojamos kitos iš anksto sumokamos sumos, Eur",0,null,null,null,null,null,null,{"$f":"IF(B32=0,\"\",B32)","v":""}]
["Minimali darbų kaina vienam kv.m. taikant išsimokėjimą",1.5,null,null,null,null,null,null,1.5]
["Ar darbams suteikiamas išsimokėjimo terminas?",{"$f":"IFERROR(IF((B10+E10-B31-B32)/B29>(B33/VLOOKUP(B11,Support!$H$3:'Support'!$I$6,2,0)/VLOOKUP(B11,Support!$H$3:'Support'!$J$6,3,0)),\"TAIP\",\"NE\"),\"NE\")","v":"TAIP"},null,null,null,null,null,null,"TAIP"]
["Išsimokėjimo terminas (paskaičiuojamas automatiškai)","48 men. (4m.)",{"$f":"OFFSET(Support!$A$7,1,MATCH($B$34,Support!$A$7:'Support'!$B$7,0)-1,1,1)","v":"12 men. (1m.)"},{"$f":"OFFSET(Support!$A$7,1,MATCH($B$34,Support!$A$7:'Support'!$B$7,0)-1,1,1)","v":"12 men. (1m.)"},{"$f":"OFFSET(Support!$A$7,1,MATCH($B$34,Support!$A$7:'Support'!$B$7,0)-1,1,1)","v":"12 men. (1m.)"},{"$f":"OFFSET(Support!$A$7,1,MATCH($B$34,Support!$A$7:'Support'!$B$7,0)-1,1,1)","v":"12 men. (1m.)"},{"$f":"OFFSET(Support!$A$7,1,MATCH($B$34,Support!$A$7:'Support'!$B$7,0)-1,1,1)","v":"12 men. (1m.)"},null,"48 men. (4m.)"]
["Objekto nemokumas, %",1.2999999999999999E-2,null,null,null,null,null,null,1.2999999999999999E-2]
["Rezervas"]
["Rezervas"]
["Faktoringo kaina, %",{"$f":"VLOOKUP(B35,Support!A18:'Support'!G25,7,0)","v":0.19448203394884239},null,null,null,null,null,null,{"$f":"B39","v":0.19448203394884239}]
["Faktoringo kaina + PVM, EUR",{"$f":"SUM(B72:G72)","v":10677.79},null,null,null,null,null,null,{"$f":"B40","v":10677.79}]
["Rezervas"]
["Ar darbams taikomas garantinis laikotarpis?","TAIP",null,null,"TAIP",null,null,null,{"$f":"IF(OR(B42=\"TAIP\",E42=\"TAIP\")=TRUE,\"TAIP\",\"NE\")","v":"TAIP"}]
["Garantijos suma, sulaikoma rangovui",{"$f":"ROUND(IF(B42=\"TAIP\",B58*VLOOKUP(B35,Support!A18:'Support'!H25,8,0),0),2)","v":1852.98},null,null,{"$f":"ROUND(IF(E42=\"TAIP\",E58*VLOOKUP(B35,Support!A18:'Support'!H25,8,0),0),2)","v":0},null,null,null,{"$f":"SUM(B43:G43)","v":1852.98}]
[]
[null,{"$f":"IF(B34=\"NE\",\"Negalimas išsimokėjimo terminas, kadangi darbų vertė neviršija 1.5 EUR vienam kv. m. Klientams už visus darbus bus išstatoma viena sąskaita\",\"Išsimokėjimo terminas paskaičiuojamas automatiškai, optimizuojant galutinę kainą\")","v":"Išsimokėjimo terminas paskaičiuojamas automatiškai, optimizuojant galutinę kainą"}]
[null,{"$f":"IF(VLOOKUP(B35,Support!A18:'Support'!I25,9,0)=B34,\"\",\"KLAIDA: NETINKAMA REIKŠMĖ. Patikslinkite išsimokėjimo terminą\")","v":""}]
[null,{"$f":"IF(OR(B15=\"KLAIDA: Atvirkštinį PVM galima rinktis tik tuo atveju, jei rangovas yra PVM mokėtojas\",B16=\"KLAIDA: Atvirkštinį PVM galima rinktis tik tuo atveju, jei rangovas yra PVM mokėtojas\",B46=\"KLAIDA: NETINKAMA REIKŠMĖ. Patikslinkite išsimokėjimo terminą\")=TRUE,\"FORMOJE YRA KLAIDŲ, PRAŠOME PATIKRINTI ĮVESTAS REIKŠMES\",\"\")","v":""}]
[null,{"$f":"IF(B36<10%,\"\",\"Darbų finansavimas išsimokėtinai nėra galimas. Nemokumas didesnis kaip 10 proc.\")","v":""}]
[]
[]
[]
[]
[]
[]
[null,"REZULTATAS",null,null,null,null,null,null,"REZULTATAS"]
[]
[null,"RANGOVO ISRASOMA SASKAITA (UZSAKOVUI)",null,null,null,null,null,null,"RANGOVO IŠRAŠOMA SĄSKAITA (UŽSAKOVUI)"]
["Suma be PVM",{"$f":"IF(B47=\"FORMOJE YRA KLAIDŲ, PRAŠOME PATIKRINTI ĮVESTAS REIKŠMES\",0,IF(OR(B11=\"PVM moketojas\",B11=\"PVM moketojas - PVM neapmokestinama veikla, ne rangos darbai\")=TRUE,B10+Support!B65+B70,B10+Support!D65+B72))","v":46324.62},null,null,{"$f":"IF(B47=\"FORMOJE YRA KLAIDŲ, PRAŠOME PATIKRINTI ĮVESTAS REIKŠMES\",0,IF(OR(B11=\"PVM moketojas\",B11=\"PVM moketojas - PVM neapmokestinama veikla, ne rangos darbai\")=TRUE,E10+Support!B86+E70,E10+Support!D86+E72))","v":0},null,null,null,{"$f":"SUM(B58:G58)","v":46324.62}]
["PVM",{"$f":"ROUND(IF(B11=\"PVM moketojas\",B58*0.21,0),2)","v":9728.17},null,null,{"$f":"ROUND(IF(B11=\"PVM moketojas\",E58*0.21,0),2)","v":0},null,null,null,{"$f":"SUM(B59:G59)","v":9728.17}]
["Suma su PVM",{"$f":"SUM(B58,B59)","v":56052.79},null,null,{"$f":"SUM(E58,E59)","v":0},null,null,null,{"$f":"SUM(I58,I59)","v":56052.79}]
[]
[]
[null,"UZSAKOVO ISRASOMA SASKAITA (RANGOVUI)",null,null,null,null,null,null,"UŽSAKOVO IŠRAŠOMA SĄSKAITA (RANGOVUI)"]
["Suma be PVM",{"$f":"IF(B47=\"FORMOJE YRA KLAIDŲ, PRAŠOME PATIKRINTI ĮVESTAS REIKŠMES\",0,Support!B65)","v":7500},null,null,{"$f":"IF(B47=\"FORMOJE YRA KLAIDŲ, PRAŠOME PATIKRINTI ĮVESTAS REIKŠMES\",0,Support!B86)","v":0},null,null,null,{"$f":"SUM(B64:G64)","v":7500}]
["PVM",{"$f":"IF(B47=\"FORMOJE YRA KLAIDŲ, PRAŠOME PATIKRINTI ĮVESTAS REIKŠMES\",0,Support!C65)","v":1575},null,null,{"$f":"IF(B47=\"FORMOJE YRA KLAIDŲ, PRAŠOME PATIKRINTI ĮVESTAS REIKŠMES\",0,Support!C86)","v":0},null,null,null,{"$f":"SUM(B65:G65)","v":1575}]
["Suma su PVM",{"$f":"SUM(B64:D65)","v":9075},null,null,{"$f":"SUM(E64:G65)","v":0},null,null,null,{"$f":"SUM(I64:K65)","v":9075}]
[]
[]
[null,"FAKTORINGO SANAUDOS",null,null,null,null,null,null,"FAKTORINGO SĄNAUDOS"]
["Suma be PVM",{"$f":"IFERROR(ROUND((Support!D53-(((B31+B32)/SUM(B10:G10))*B10))*B39,2),0)","v":8824.6200000000008},null,null,{"$f":"IF(E10=0,0,ROUND(((Support!D53+Support!D73)-B31-B32)*B39,2)-B70)","v":0},null,null,null,{"$f":"SUM(B70:G70)","v":8824.6200000000008}]
["PVM",{"$f":"ROUND(B70*0.21,2)","v":1853.17},null,null,{"$f":"IF(E10=0,0,ROUND((Support!D53+Support!D73-B31-B32)*B39*0.21,2)-B71)","v":0},null,null,null,{"$f":"SUM(B71:G71)","v":1853.17}]
["Faktoringo sąnaudos",{"$f":"SUM(B70:D71)","v":10677.79},null,null,{"$f":"SUM(E70:G71)","v":0},null,null,null,{"$f":"SUM(B72:G72)","v":10677.79}]
[]
[]
[null,"KONKURSINE KAINA",null,null,null,null,null,null,"KONKURSINĖ KAINA"]
["Suma be PVM",{"$f":"B58","v":46324.62},null,null,{"$f":"E58","v":0},null,null,null,{"$f":"SUM(B76:G76)","v":46324.62}]
["PVM",{"$f":"ROUND(IF(B11=\"Ne PVM moketojas - rangos darbai\",0,B58*0.21),2)","v":9728.17},null,null,{"$f":"ROUND(IF(B11=\"Ne PVM moketojas - rangos darbai\",0,E58*0.21),2)","v":0},null,null,null,{"$f":"SUM(B77:G77)","v":9728.17}]
["Suma su PVM",{"$f":"SUM(B76:D77)","v":56052.79},null,null,{"$f":"SUM(E76:G77)","v":0},null,null,null,{"$f":"SUM(B78:G78)","v":56052.79}]
[]
[]
[]
[null,"PINIGU JUDEJIMAS (NURODOMAS SUTARTYJE)",null,null,null,null,null,null,"PINIGŲ JUDĖJIMAS (NURODOMAS SUTARTYJE)"]
["Rangovo išrašoma sąskaita (sut. 2.1)",{"$f":"B60","v":56052.79},null,null,{"$f":"E60","v":0},null,null,null,{"$f":"SUM(B83:G83)","v":56052.79}]
["Kaupiamosiomis ir kitomis lėšomis apmokama dalis (sut. 2.2)",{"$f":"IFERROR((B31+B32)/SUM(B10:G10)*B10,0)","v":0},null,null,{"$f":"SUM(B31:G32)-B84","v":0},null,null,null,{"$f":"SUM(B84:G84)","v":0}]
["Likusi sąskaitos dalis (be kaupiamųjų lėšų) (faktoringo atveju, faktoringuojama) (sut. 2.3)",{"$f":"B83-B84","v":56052.79},null,null,{"$f":"E83-E84","v":0},null,null,null,56052.79]
["Faktoringo mokestis (sut. 4.1)",{"$f":"IF(B47=\"FORMOJE YRA KLAIDŲ, PRAŠOME PATIKRINTI ĮVESTAS REIKŠMES\",0,B72)","v":10677.79},null,null,{"$f":"IF(B47=\"FORMOJE YRA KLAIDŲ, PRAŠOME PATIKRINTI ĮVESTAS REIKŠMES\",0,E72)","v":0},null,null,null,10677.79]
["Administratorius sulaiko dalį lėšų už atvirkštinį PVM (sut. 4.3)",{"$f":"IF(B12=\"TAIP\",B59,0)","v":9728.17},null,null,{"$f":"IF(E12=\"TAIP\",E59,0)","v":0},null,null,null,9728.17]
["Administratorius sulaiko dalį lėšų už garantiją (sut. 4.2)",{"$f":"B43","v":1852.98},null,null,{"$f":"E43","v":0},null,null,null,1852.98]
["Administratorius sulaiko dalį lėšų už administravimo mokesčius (sut. 4.4)",{"$f":"B66","v":9075},null,null,{"$f":"E66","v":0},null,null,null,9075]
["Rangovo gaunama suma",{"$f":"IF(B47=\"FORMOJE YRA KLAIDŲ, PRAŠOME PATIKRINTI ĮVESTAS REIKŠMES\",0,(B60-B88-B86-B87-B89))","v":24718.85},null,null,{"$f":"IF(B47=\"FORMOJE YRA KLAIDŲ, PRAŠOME PATIKRINTI ĮVESTAS REIKŠMES\",0,(E60-E88-E86-E87-E89))","v":0},null,null,null,24718.85]
["Rangovo gaunama suma (kaupiamosios ir kitos lėšos)",{"$f":"IF(B84>B90,B90,B84)","v":0},null,null,{"$f":"IF(E84>E90,E90,E84)","v":0},null,null,null,0]
["Rangovo gaunama suma (be kaupiamųjų ir kitų lėšų (sut. 4.8))",{"$f":"B90-B91","v":24718.85},null,null,{"$f":"E90-E91","v":0},null,null,null,24718.85]
[]
[]
[]
[]
["PAPILDOMA INFORMACIJA UŽSAKOVUI:"]
["Gyventojams išrašomos sąskaitos faktūros","Suma","PVM","Suma su PVM"]
["Už visą laikotarpį - KONKURSINĖ KAINA",{"$f":"SUM(B58:G58)","v":46324.62},{"$f":"ROUND(IF(B11=\"Ne PVM moketojas - rangos darbai\",0,SUM(B58:G58)*0.21),2)","v":9728.17},{"$f":"SUM(B99,C99)","v":56052.79}]
["Kaupiamųjų ir kitų lėšų panaudojimas",{"$f":"ROUND(IF(C99>0,((B31+B32)/1.21),B31+B32),2)","v":0},{"$f":"D100-B100","v":0},{"$f":"B31+B32","v":0}]
["Likusi mokėtina suma (Konkursinė kaina minus kaupiamosios ir kitos iš anksto panaudotos lėšos)",{"$f":"B99-B100","v":46324.62},{"$f":"C99-C100","v":9728.17},{"$f":"D99-D100","v":56052.79}]
["Skaičiuojama įvertinus kaupiamąsias lėšas:"]
["Už vieną mėnesį (namui)",{"$f":"B101/VLOOKUP($B$35,Support!$A$18:'Support'!$J$25,10,0)","v":965.09625000000005},{"$f":"C101/VLOOKUP($B$35,Support!$A$18:'Support'!$J$25,10,0)","v":202.67020833333333},{"$f":"D101/VLOOKUP($B$35,Support!$A$18:'Support'!$J$25,10,0)","v":1167.7664583333333}]
["Suma vienam kv. m. už visą laikotarpį",{"$f":"B101/$B$29","v":19.942752100840337},{"$f":"C101/$B$29","v":4.1879778550764568},{"$f":"D101/$B$29","v":24.130729955916792}]
["Suma vienam kv. m. per vieną mėnesį",{"$f":"B103/$B$29","v":0.41547400210084034},{"$f":"C103/$B$29","v":8.7249538647426184E-2},{"$f":"D103/$B$29","v":0.50272354074826642}]
["Suma vidutinio dydžio patalpai (butui) už visą laikotarpį",{"$f":"IFERROR(B101/$B$30,0)","v":1323.5605714285714},{"$f":"IFERROR(C101/$B$30,0)","v":277.94771428571431},{"$f":"IFERROR(D101/$B$30,0)","v":1601.5082857142856}]
["Suma vidutinio dydžio patalpai (butui) per vieną mėnesį",{"$f":"IFERROR(B103/$B$30,0)","v":27.574178571428572},{"$f":"IFERROR(C103/$B$30,0)","v":5.7905773809523806},{"$f":"IFERROR(D103/$B$30,0)","v":33.364755952380953}]
[]
[]
[]
["KONTROLĖ (UŽDARBIS)","KONTROLĖ (UŽDARBIS)",null,null,null,null,null,null,"KONTROLĖ (UŽDARBIS)"]
["Rangovas",{"$f":"SUM(B113:B115)","v":26571.83},null,null,null,null,null,null,{"$f":"B112","v":26571.83}]
["Pardavimo pajamos",{"$f":"SUM(B58:G58)","v":46324.62},null,null,null,null,null,null,{"$f":"B113","v":46324.62}]
["Komisinių sąnaudos",{"$f":"-IF(OR(B11=\"PVM mokėtojas\",B11=\"PVM mokėtojas - PVM neapmokestinama veikla, ne rangos darbai\")=TRUE,SUM(B64:G64),SUM(B64:G64)+SUM(B65:G65))","v":-9075},null,null,null,null,null,null,-9075]
["Faktoringo sąnaudos",{"$f":"-IF(B47=\"FORMOJE YRA KLAIDŲ, PRAŠOME PATIKRINTI ĮVESTAS REIKŠMES\",0,IF(OR(B11=\"PVM mokėtojas\",B11=\"PVM mokėtojas - PVM neapmokestinama veikla, ne rangos darbai\")=TRUE,SUM(B70:G70),SUM(B72:G72)))","v":-10677.79},null,null,null,null,null,null,-10677.79]
[]
["Administratorius",{"$f":"SUM(B64:G64)","v":7500},null,null,null,null,null,null,{"$f":"B117","v":7500}]
["Finansuotojas",{"$f":"IF(B47=\"FORMOJE YRA KLAIDŲ, PRAŠOME PATIKRINTI ĮVESTAS REIKŠMES\",0,IF(OR(B11=\"PVM mokėtojas\",B11=\"PVM mokėtojas - PVM neapmokestinama veikla, ne rangos darbai\")=TRUE,SUM(B70:G70),SUM(B72:G72)))","v":10677.79},null,null,null,null,null,null,10677.79]
["VMI",{"$f":"IF(OR(B11=\"PVM mokėtojas\",B11=\"PVM mokėtojas - PVM neapmokestinama veikla, ne rangos darbai\")=TRUE,C99,C99+B65+E65)","v":11303.17},null,null,null,null,null,null,11303.17]
[]
["Iš viso",{"$f":"SUM(B112,B117,B118,B119)","v":56052.79},null,null,null,null,null,null,{"$f":"B121","v":56052.79}]
["Kontrolė",{"$f":"D99-B121","v":0},null,null,null,null,null,null,0]
[]
[]
[]
[]
[]
[]
[]
[]
[null,"Darbas #1",null,null,"Darbas #2"]
[null,"PortalPRO",null,null,null,null,null,null,"PortalPRO"]
["Rangovo gaunamos pajamos, EUR be PVM",2000,null,null,null,null,null,null,{"$f":"SUM(B133:G133)","v":2000}]
["Darbų vykdytojo PVM mokėtojo statusas","PVM mokėtojas",null,null,null,null,null,null,{"$f":"B134","v":"PVM mokėtojas"}]
[]
["Administratoriaus pavadinimas","UAB „Mano Būstas Alytus“",null,null,null,null,null,null,{"$f":"B136","v":"UAB „Mano Būstas Alytus“"}]
["Iniciatorius",null,null,null,null,null,null,null,{"$f":"B137","v":0}]
[]
["Namo valdymo forma","Bendrija",null,null,null,null,null,null,{"$f":"B139","v":"Bendrija"}]
["Namo adresas",null,null,null,null,null,null,null,{"$f":"B140","v":0}]
["Darbо tipas",null,null,null,null,null,null,null,{"$f":"B141","v":0}]
["Naudingas namo/laiptinės plotas, kv. m.",500,null,null,null,null,null,null,500]
["Namo/laiptinės butų skaičius, vnt.",null,null,null,null,null,null,null,0]
["Panaudojama kaupiamųjų lėšų suma",null,null,null,null,null,null,null,0]
["Panaudojamos kitos iš anksto sumokamos sumos, Eur",null,null,null,null,null,null,null,0]
["Objekto nemokumas, %",0,null,null,null,null,null,null,{"$f":"B146","v":0}]
["Minimali darbų kaina vienam kv.m. taikant išsimokėjimą",1.5,null,null,null,null,null,null,{"$f":"B147","v":1.5}]
["Ar darbams suteikiamas išsimokėjimo terminas?",{"$f":"IFERROR(IF(AND(B156>2000,(B156-B144-B145)/B142>=1.5)=TRUE,\"TAIP\",\"NE\"),\"NE\")","v":"TAIP"},null,null,null,null,null,null,{"$f":"B148","v":"TAIP"}]
["Išsimokėjimo terminas (paskaičiuojamas automatiškai)",{"$f":"IF(B148=\"NE\",\"Be išsimokėjimo termino\",\"6 mėn.\")","v":"6 mėn."},null,null,null,null,null,null,{"$f":"B149","v":"6 mėn."},"Be išsimokėjimo termino","Be išsimokėjimo termino"]
[]
[]
[]
["Sąskaita faktūra","PortalPRO sąskaita",null,null,null,null,null,null,"PortalPRO sąskaita"]
["Suma be PVM",{"$f":"B133","v":2000},null,null,{"$f":"E133","v":0},null,null,null,{"$f":"SUM(B154:G154)","v":2000}]
["PVM",{"$f":"ROUND(IF(B134=\"PVM mokėtojas\",B154*0.21,0),2)","v":420},null,null,{"$f":"ROUND(IF(B134=\"PVM mokėtojas\",E154*0.21,0),2)","v":0},null,null,null,{"$f":"SUM(B155:G155)","v":420}]
["Suma su PVM",{"$f":"SUM(B154:D155)","v":2420},null,null,{"$f":"SUM(E154:G155)","v":0},null,null,null,2420]
[]
[]
[]
["PAPILDOMA INFORMACIJA ADMINISTRATORIUI:"]
["Gyventojams išrašomos sąskaitos faktūros","Suma","PVM","Suma su PVM"]
["Už visą laikotarpį - KONKURSINĖ KAINA",{"$f":"SUM(B154:G154)","v":2000},{"$f":"SUM(B155:G155)","v":420},{"$f":"SUM(B162:C162)","v":2420}]
["Kaupiamųjų ir kitų lėšų panaudojimas",{"$f":"ROUND(IF(B134=\"PVM mokėtojas\",SUM(B144:G145)/1.21,SUM(B144:G145)),2)","v":0},{"$f":"D163-B163","v":0},{"$f":"SUM(B144:G145)","v":0}]
["Už visą laikotarpį - KONKURSINĖ KAINA (panaudojus kaupiamąsias lėšas)",{"$f":"B162-B163","v":2000},{"$f":"C162-C163","v":420},{"$f":"SUM(B164:C164)","v":2420}]
["Skaičiuojama įvertinus kaupiamąsias lėšas:"]
["Už vieną mėnesį (namui)",{"$f":"IF(B148=\"TAIP\",B164/6,B164)","v":333.33333333333331},{"$f":"IF(B148=\"TAIP\",C164/6,C164)","v":70},{"$f":"SUM(B166:C166)","v":403.33333333333331}]
["Suma vienam kv. m. už visą laikotarpį",{"$f":"IFERROR(B164/$B$142,0)","v":4},{"$f":"IFERROR(C164/$B$142,0)","v":0.84},4.84]
["Suma vienam kv. m. per vieną mėnesį",{"$f":"IFERROR(IF(B148=\"TAIP\",B164/B142/6,B164/B142),0)","v":0.66666666666666663},{"$f":"IFERROR(IF(B148=\"TAIP\",C164/B142/6,C164/B142),0)","v":0.13999999999999999},0.80666666666666664]
["Suma vidutinio dydžio patalpai (butui) už visą laikotarpį",{"$f":"IFERROR(B164/B143,0)","v":0},{"$f":"IFERROR(C164/B143,0)","v":0},0]
["Suma vidutinio dydžio patalpai (butui) per vieną mėnesį",{"$f":"IFERROR(IF(B148=\"TAIP\",B164/B143/6,B164/B143),0)","v":0},{"$f":"IFERROR(IF(B148=\"TAIP\",C164/B143/6,C164/B143),0)","v":0},0]

{"sheet":"Issimokejimo grafikas","index":2,"n_rows":57,"n_cols":6,"rows_kept":57,"cut":false,"hidden":false,"merged":[[6,1,6,5],[0,2,0,5],[1,2,1,5],[4,3,4,5],[3,3,3,5],[2,3,2,5]]}
[null,null,"Pildomi laukai"]
[null,null,"Informacija apie paskolą"]
[null,null,"Mėnesiai",{"$f":"IF(Paraiska!B13=\"PortalPRO\",IF(Paraiska!B148=\"TAIP\",6,1),VLOOKUP(Paraiska!B35,Support!$A$18:$J$25,10,0))","v":48}]
[null,null,"Suma",{"$f":"IF(Paraiska!B13=\"PortalPRO\",Paraiska!D164,Paraiska!I85)","v":56052.79}]
[null,null,"Data","2021-04-25"]
[null,null,null,{"$f":"EOMONTH(C9,D3-1)","v":"2025-03-31"}]
[null,"Mokėjimų grafikas"]
[null,"Mėnesis","Kredito grąžinimo ir palūkanų mokėjimo data","Kredito likutis periodo pradžioje","Mokėtina suma","Kredito likutis periodo pabaigoje"]
[null,1,{"$f":"IF($B$9>$D$3,\"\",EOMONTH(D5,0))","v":"2021-04-30"},{"$f":"D4","v":56052.79},{"$f":"IF(C9=$D$6,D9,ROUND(IF($D$4/$D$3>D9,D9,$D$4/$D$3),2))","v":1167.77},{"$f":"D9-E9","v":54885.020000000004}]
[null,2,{"$f":"IF(B10>$D$3,\"\",EOMONTH(C9,1))","v":"2021-05-31"},{"$f":"F9","v":54885.020000000004},{"$f":"IF(C10=$D$6,D10,ROUND(IF($D$4/$D$3>D10,D10,$D$4/$D$3),2))","v":1167.77},{"$f":"D10-E10","v":53717.250000000007}]
[null,3,"2021-06-30",{"$f":"F10","v":53717.250000000007},1167.77,52549.48000000001]
[null,4,"2021-07-31",52549.48000000001,1167.77,51381.710000000014]
[null,5,"2021-08-31",51381.710000000014,1167.77,50213.940000000017]
[null,6,"2021-09-30",50213.940000000017,1167.77,49046.17000000002]
[null,7,"2021-10-31",49046.17000000002,1167.77,47878.400000000023]
[null,8,"2021-11-30",47878.400000000023,1167.77,46710.630000000026]
[null,9,"2021-12-31",46710.630000000026,1167.77,45542.86000000003]
[null,10,"2022-01-31",45542.86000000003,1167.77,44375.090000000033]
[null,11,"2022-02-28",44375.090000000033,1167.77,43207.320000000036]
[null,12,"2022-03-31",43207.320000000036,1167.77,42039.550000000039]
[null,13,"2022-04-30",42039.550000000039,1167.77,40871.780000000042]
[null,14,"2022-05-31",40871.780000000042,1167.77,39704.010000000046]
[null,15,"2022-06-30",39704.010000000046,1167.77,38536.240000000049]
[null,16,"2022-07-31",38536.240000000049,1167.77,37368.470000000052]
[null,17,"2022-08-31",37368.470000000052,1167.77,36200.700000000055]
[null,18,"2022-09-30",36200.700000000055,1167.77,35032.930000000058]
[null,19,"2022-10-31",35032.930000000058,1167.77,33865.160000000062]
[null,20,"2022-11-30",33865.160000000062,1167.77,32697.390000000061]
[null,21,"2022-12-31",32697.390000000061,1167.77,31529.620000000061]
[null,22,"2023-01-31",31529.620000000061,1167.77,30361.85000000006]
[null,23,"2023-02-28",30361.85000000006,1167.77,29194.08000000006]
[null,24,"2023-03-31",29194.08000000006,1167.77,28026.31000000006]
[null,25,"2023-04-30",28026.31000000006,1167.77,26858.540000000059]
[null,26,"2023-05-31",26858.540000000059,1167.77,25690.770000000059]
[null,27,"2023-06-30",25690.770000000059,1167.77,24523.000000000058]
[null,28,"2023-07-31",24523.000000000058,1167.77,23355.230000000058]
[null,29,"2023-08-31",23355.230000000058,1167.77,22187.460000000057]
[null,30,"2023-09-30",22187.460000000057,1167.77,21019.690000000057]
[null,31,"2023-10-31",21019.690000000057,1167.77,19851.920000000056]
[null,32,"2023-11-30",19851.920000000056,1167.77,18684.150000000056]
[null,33,"2023-12-31",18684.150000000056,1167.77,17516.380000000056]
[null,34,"2024-01-31",17516.380000000056,1167.77,16348.610000000055]
[null,35,"2024-02-29",16348.610000000055,1167.77,15180.840000000055]
[null,36,"2024-03-31",15180.840000000055,1167.77,14013.070000000054]
[null,37,"2024-04-30",14013.070000000054,1167.77,12845.300000000054]
[null,38,"2024-05-31",12845.300000000054,1167.77,11677.530000000053]
[null,39,"2024-06-30",11677.530000000053,1167.77,10509.760000000053]
[null,40,"2024-07-31",10509.760000000053,1167.77,9341.9900000000525]
[null,41,"2024-08-31",9341.9900000000525,1167.77,8174.2200000000521]
[null,42,"2024-09-30",8174.2200000000521,1167.77,7006.4500000000517]
[null,43,"2024-10-31",7006.4500000000517,1167.77,5838.6800000000512]
[null,44,"2024-11-30",5838.6800000000512,1167.77,4670.9100000000508]
[null,45,"2024-12-31",4670.9100000000508,1167.77,3503.1400000000508]
[null,46,"2025-01-31",3503.1400000000508,1167.77,2335.3700000000508]
[null,47,"2025-02-28",2335.3700000000508,1167.77,1167.6000000000508]
[null,48,"2025-03-31",1167.6000000000508,1167.6000000000508,0]
[null,null,null,"Bendra mokėtina suma",{"$f":"SUM(E9:E56)","v":56052.79}]

{"sheet":"Darbu Sarasas","index":3,"n_rows":53,"n_cols":5,"rows_kept":53,"cut":false,"hidden":false,"merged":[]}
["Grupė","Buhalterinė sąskaita NAV","DK sąskaita","Darbų pavadinimai","Atvirkštinis PVM"]
["Elektra","Elektros instaliacijos remontas","501089","Elektros skydinės renovacija, atnaujinimas","Taikomas APVM"]
["Elektra","Elektros instaliacijos remontas","501089","Laiptinės apšvietimo atnaujinimas( šviestuvai su davikliais)","Taikomas APVM"]
["Elektra","Elektros instaliacijos remontas","501089","Laiptinės apskaitos skydelių atnaujinimas, remontas","Taikomas APVM"]
["Elektra","Elektros instaliacijos remontas","501089","Magistralinių elektros instaliacijos laidų keitimas","Taikomas APVM"]
["Elektra","Elektros instaliacijos remontas","501089","Rūsio elektros instaliacijos, apšvietimo atnaujinimas, remontas","Taikomas APVM"]
["Elektra","Elektros instaliacijos remontas","501089","Telefonspynės įrengimas","Taikomas APVM"]
["Elektra","Elektros instaliacijos remontas","501089","Kelio užtvaro, vartų automatikos remontas, įrengimas","Taikomas APVM"]
["Stogai","Stogo remontas","501081","Prylydomos stogo dangos keitimas, apšiltinimas","Taikomas APVM"]
["Stogai","Stogo remontas","501081","Stogo dangos ir konstrukcijų kapitalinis remontas","Taikomas APVM"]
["Stogai","Stogo remontas","501081","Šlaitinio stogo dangos keitimas ( šerpinės, šiferio, plieninio)","Taikomas APVM"]
["Stogai","Stogo remontas","501081","Lietaus nuvedimo sitemos keitimas( latakai, lietvamzdžiai)","Taikomas APVM"]
["Kaminai, vėdinimo šachtos","Stogo remontas","501081","Kaminų, vėdinimo šachtų remontas","Taikomas APVM"]
["Stogai","Stogo remontas","501081","Projektavimo darbai (stogai)","Netaikomas APVM"]
["Išorės sienos ( fasadai)","Staliaus ir bendrastatybiniai","501088","Išorės sienų (fasado) apdailos remonto darbai","Taikomas APVM"]
["Išorės sienos ( fasadai)","Staliaus ir bendrastatybiniai","501088","Išorės sienų (fasado) šiltinimo darbai","Taikomas APVM"]
["Išorės sienos ( fasadai)","Staliaus ir bendrastatybiniai","501088","Fasado mūro sienų atstatymas","Taikomas APVM"]
["Išorės sienos ( fasadai)","Staliaus ir bendrastatybiniai","501088","Balkonų, terasų grindų ir konstrukcijų, remontas","Taikomas APVM"]
["Išorės sienos ( fasadai)","Staliaus ir bendrastatybiniai","501088","Projektavimo darbai ( išorės sienos (fasadai), balkonai, perdangos)","Netaikomas APVM"]
["Išorės sienos ( fasadai)","Staliaus ir bendrastatybiniai","501088","Pastato konstrukcijų būklės vertinimas","Netaikomas APVM"]
["Išorės sienos ( fasadai)","Siūlių remontas","501083","Išorės pastatų sienų siūlių hermetizavimas","Taikomas APVM"]
["Išorės sienos ( fasadai)","Siūlių remontas","501083","Tarpblokinių siūlių hermetizavimas","Taikomas APVM"]
["Įėjimo aikštelės, stogeliai","Staliaus ir bendrastatybiniai","501088","Laiptinės įėjimo aikštelės, laiptų remontas","Taikomas APVM"]
["Įėjimo aikštelės, stogeliai","Staliaus ir bendrastatybiniai","501088","Įėjimo į laiptinė stogelio remontas","Taikomas APVM"]
["Nuogrinda","Staliaus ir bendrastatybiniai","501088","Pastato nuogrindos įrengimas, remontas","Taikomas APVM"]
["Teritorija","Staliaus ir bendrastatybiniai","501088","Kelio užtvaro montavimas ( bendrastatybinė dalys)","Taikomas APVM"]
["Pastatų vidaus paviršiai","Laiptinių priežiūra ir remontas","501085","Pastatų vidaus paviršių apdailos remontas ( dažymas, tinkavimas)","Taikomas APVM"]
["Pastatų vidaus paviršiai","Laiptinių priežiūra ir remontas","501085","Laipinės dekoratyvinių tinko apdaila","Taikomas APVM"]
["Signalizacijos ( silpnos srovės) apsauginė ir gaisrinė","Pultinė apsauga","5010896","Apsauginės, gaisrinės signalizacijos ir silpnų srovių sistemų instaliacijos, centralės keitimas, remontas","Taikomas APVM"]
["Apsaugos sistemos","Apsaugos sistemų montavimas","50108053","Apsaugos sistemų (pultinės ir vaizdo stebėjimo kamerų) įrengimas ir montavimas","Taikomas APVM"]
["Dujotiekis ( katilinės)","Dujas deginančių įr. papild.","5010898","Dujotiekio sistemos vamzdynų ir įrangos remontas","Taikomas APVM"]
["Langai ir durys","Langų/durų keitimas","501084","Įėjimo laiptinių/rūsio durų keitimas","Taikomas APVM"]
["Langai ir durys","Langų/durų keitimas","501084","Laiptinės langų keitimas","Taikomas APVM"]
["Langai ir durys","Langų/durų keitimas","501084","Plienininių laiptinės durų su telefonspynė montavimas","Taikomas APVM"]
["Liftai","Liftų remontas","5010801","Liftų įrangos ir pritaisų keitimas, remontas","Netaikomas APVM"]
["Liftai","Liftų remontas","5010801","Liftų montavimas, modernizavimas (nauji liftai)","Taikomas APVM"]
["Priešgaisrinis vandentiekis","Priešgaisrinių sistemų papild.","5010897","Priešgaisrinio vandentiekio sistemos vamzdyno ir čiaupų remontas","Taikomas APVM"]
["Priešgaisrinis vandentiekis","Priešgaisrinių sistemų papild.","5010897","Gaisrinių žarnų ir čiaupų patikra, perkantavimas ir bandymas","Taikomas APVM"]
["Šaltas vandens ir nuotekų tinklai","Š.v. tiekimo ir kanalizavimo sistemų remontas","501087","Šaltas vandens ir nuotekos tinklų vamzdynų remontas","Taikomas APVM"]
["Šaltas vandens ir nuotekų tinklai","Š.v. tiekimo ir kanalizavimo sistemų remontas","501087","Projektavimo darbai ( šalto vandens, buitinių ir lietas nuotekų sistemos)","Netaikomas APVM"]
["Šalto vandens sistemos","Š.v. tiekimo ir kanalizavimo sistemų remontas","501087","Šalto vandens sistemos vamzdynų keitimas( magistralinių, stovų,skirtomojo)","Taikomas APVM"]
["Šalto vandens sistemos ","Š.v. tiekimo ir kanalizavimo sistemų remontas","501087","Vandens valymo įrangos įrengimas su filtrais","Taikomas APVM"]
["Buitinės ir lietaus nuotekos","Š.v. tiekimo ir kanalizavimo sistemų remontas","501087","Kanalizacija ir nuotekos tinklų vamzdynų remontas","Taikomas APVM"]
["Šildymo ir karšto vandens sistemos","Šildymo ir kv. sistemos remontas","501086","Šildymo ir karšto vandens sistemų stovų vamzdynų keitimas","Taikomas APVM"]
["Šildymo ir karšto vandens sistemos","Šildymo ir kv. sistemos remontas","501086","Karšto, cirkuliacinio ir šildymo magistralinių vamzdžių keitimo darbai","Taikomas APVM"]
["Šildymo ir karšto vandens sistemos","Šildymo ir kv. sistemos remontas","501086","Slėgio perkričio reguliatoriaus ir privirinamos sklendės keitimo darbai","Taikomas APVM"]
["Šildymo ir karšto vandens sistemos","Šildymo ir kv. sistemos remontas","501086","Šildymo sistemos skirstomojo vamzdyno remontas","Taikomas APVM"]
["Šildymo ir karšto vandens sistemos","Šildymo ir kv. sistemos remontas","501086","Šilumos punkto įrangos keitimas, remontas ( valdiklių, dvieigių vožtuvų, pavarų, siublių, šilumokaičių)","Taikomas APVM"]
["Šildymo ir karšto vandens sistemos","Šildymo ir kv. sistemos remontas","501086","Projektavimo darbai ( Šildymo ir karšto vandens sistemos, šilumos punktai)","Netaikomas APVM"]
["Vėdinimo ir oro kondicionavimo sistemos","Vėdinimo ir oro kondicionavimo","5010891","Vėdinimo ir oro kondicionavimo sistemų remontas","Taikomas APVM"]
["Vėdinimo ir oro kondicionavimo sistemos","Vėdinimo ir oro kondicionavimo","5010891","Kondicionierių montavimas","Taikomas APVM"]
["Vėdinimo ir oro kondicionavimo sistemos","Vėdinimo ir oro kondicionavimo","5010891","Kondicionavimo sistemų papildymos šaldymo skysščių","Netaikomas APVM"]
["Pastatų renovacijos darbai","Pastatų renovacija","5010893","Išorės pastato sienų, stogų, balkonų, inžinierinių sitemų renovacija ir atnaujinimas","Taikomas APVM"]